fUSD/lending_fUSD_20241004
["ID","MTS","AMOUNT","RATE_DAILY","PERIOD"]
[339857418,1728072662229,-608.59,0.00038357,120]
[339857419,1728072662237,-500.0,0.00038357,120]
[339857420,1728072662246,-500.0,0.00038357,120]
[339857421,1728072662255,-500.0,0.00038357,120]
[339857422,1728072662264,-500.0,0.00038357,120]
[339857423,1728072662275,-500.0,0.00038357,120]
[339857424,1728072662285,-500.0,0.00038357,120]
[339857425,1728072662296,-500.0,0.00038357,120]
[339857426,1728072662306,-604.81,0.00038357,120]
[339857427,1728072662316,-500.0,0.00038357,120]
[339857428,1728072662325,-500.0,0.00038357,120]
[339857429,1728072662335,-195.54,0.00038357,120]
[339857430,1728072662347,-500.0,0.00038357,120]
[339857431,1728072662356,-500.0,0.00038357,120]
[339857432,1728072662365,-500.0,0.00038357,120]
[339857433,1728072662375,-536.9,0.00038357,120]
[339857434,1728072662384,-500.0,0.00038357,120]
[339857435,1728072662393,-500.0,0.00038357,120]
[339857436,1728072662403,-500.0,0.00038357,120]
[339857437,1728072662412,-500.0,0.00038357,120]
[339857438,1728072662421,-500.0,0.00038357,120]
[339857439,1728072662430,-626.73,0.00038357,120]
[339857440,1728072662440,-500.0,0.00038357,120]
[339857441,1728072662450,-500.0,0.00038357,120]
[339857442,1728072662460,-987.54,0.00038357,120]
[339857443,1728072662469,-500.0,0.00038357,120]
[339857444,1728072662478,-500.0,0.00038357,120]
[339857445,1728072662487,-500.0,0.00038357,120]
[339857446,1728072662497,-500.0,0.00038357,120]
[339857447,1728072662506,-500.0,0.00038357,120]
[339857448,1728072662515,-500.0,0.00038357,120]
[339857449,1728072662524,-500.0,0.00038357,120]
[339857450,1728072662533,-504.11,0.00038357,120]
[339857451,1728072662543,-500.0,0.00038357,120]
[339857452,1728072662552,-500.0,0.00038357,120]
[339857453,1728072662561,-500.0,0.00038357,120]
[339857454,1728072662570,-500.0,0.00038357,120]
[339857455,1728072662580,-1250.07,0.00038357,120]
[339857456,1728072662589,-500.0,0.00038357,120]
[339857457,1728072662598,-433.26531935,0.00038357,120]
[339857458,1728072662609,-534.02,0.00038357,120]
[339857459,1728072662620,-500.0,0.00038357,120]
[339857460,1728072662629,-767.38,0.00038357,120]
[339857461,1728072662638,-676.97,0.00038357,120]
[339857462,1728072662648,-616.08,0.00038357,120]
[339857463,1728072662659,-1132.33,0.00038357,24]
[339857464,1728072662669,-500.0,0.00038357,120]
[339857465,1728072662679,-500.0,0.00038357,120]
[339857466,1728072662688,-500.0,0.00038357,120]
[339857467,1728072662697,-2379.6,0.00038357,120]
[339857468,1728072662706,-500.0,0.00038357,120]
[339857469,1728072662719,-334.87463381,0.00038357,120]
[339857470,1728072662728,-500.0,0.00038357,120]
[339857471,1728072662737,-664.66,0.00038357,120]
[339857472,1728072662747,-500.0,0.00038357,120]
[339857473,1728072662756,-500.0,0.00038357,120]
[339857474,1728072662766,-1331.28,0.00038357,120]
[339857475,1728072662777,-500.0,0.00038357,120]
[339857476,1728072662787,-1012.06,0.00038357,120]
[339857477,1728072662797,-500.0,0.00038357,120]
[339857478,1728072662807,-818.68,0.00038357,120]
[339857479,1728072662818,-500.0,0.00038357,120]
[339857480,1728072662827,-500.0,0.00038357,120]
[339857481,1728072662836,-500.0,0.00038357,120]
[339857482,1728072662845,-500.0,0.00038357,120]
[339857483,1728072662855,-538.99,0.00038357,120]
[339857484,1728072662864,-676.85,0.00038357,120]
[339857485,1728072662874,-500.0,0.00038357,120]
[339857486,1728072662884,-3067.57,0.00038357,120]
[339857487,1728072662893,-500.0,0.00038357,120]
[339857488,1728072662903,-500.0,0.00038357,120]
[339857489,1728072662912,-449.39068319,0.00038357,120]
[339857490,1728072662921,-337.79,0.00038358,120]
[339857491,1728072662931,-500.0,0.00038358,120]
[339857492,1728072662940,-537.09,0.00038358,120]
[339857493,1728072662950,-820.07,0.00038358,120]
[339857494,1728072662960,-500.0,0.00038358,120]
[339857495,1728072662969,-633.53,0.00038358,120]
[339857496,1728072662981,-500.0,0.00038358,120]
[339857497,1728072662991,-810.03,0.00038358,120]
[339857498,1728072663001,-500.0,0.00038358,120]
[339857499,1728072663010,-500.0,0.00038358,120]
[339857500,1728072663020,-500.0,0.00038358,120]
[339857501,1728072663029,-500.0,0.00038358,120]
[339857502,1728072663039,-500.0,0.00038358,120]
[339857503,1728072663048,-500.0,0.00038358,120]
[339857504,1728072663057,-500.0,0.00038358,120]
[339857505,1728072663067,-500.0,0.00038358,120]
[339857506,1728072663076,-500.0,0.00038358,120]
[339857507,1728072663086,-500.0,0.00038358,120]
[339857508,1728072663095,-560.87,0.00038358,120]
[339857509,1728072663105,-535.45,0.00038358,120]
[339857510,1728072663114,-580.12263541,0.00038358,120]
[339857511,1728072663124,-500.0,0.00038358,120]
[339857512,1728072663133,-500.0,0.00038358,120]
[339857513,1728072663143,-556.13853557,0.00038358,120]
[339857514,1728072663154,-500.0,0.00038358,120]
[339857515,1728072663163,-500.0,0.00038358,120]
[339857516,1728072663172,-500.0,0.00038358,120]
[339857517,1728072663182,-500.0,0.00038358,120]
[339857518,1728072663191,-272.33676779,0.00038358,120]
[339857519,1728072663201,-779.62,0.00038358,120]
[339857520,1728072663211,-500.0,0.00038358,120]
[339857521,1728072663220,-550.0,0.00038358,120]
[339857522,1728072663230,-258.01264591,0.00038358,120]
[339857523,1728072663240,-1880.23,0.00038358,120]
[339857524,1728072663249,-500.0,0.00038358,120]
[339857525,1728072663258,-500.0,0.00038358,120]
[339857526,1728072663267,-500.0,0.00038358,120]
[339857527,1728072663277,-509.89,0.00038358,120]
[339857528,1728072663287,-500.0,0.00038358,120]
[339857529,1728072663296,-500.0,0.00038358,120]
[339857530,1728072663306,-500.0,0.00038359,120]
[339857531,1728072663315,-847.37,0.00038359,120]
[339857532,1728072663324,-500.0,0.00038359,120]
[339857533,1728072663334,-500.0,0.00038359,120]
[339857534,1728072663344,-500.0,0.00038359,120]
[339857535,1728072663354,-500.0,0.00038359,120]
[339857536,1728072663364,-500.0,0.00038359,120]
[339857537,1728072663374,-500.0,0.00038359,120]
[339857538,1728072663384,-500.0,0.00038359,120]
[339857539,1728072663394,-500.0,0.00038359,120]
[339857540,1728072663404,-500.0,0.00038359,120]
[339857541,1728072663414,-495.83995013,0.00038359,120]
[339857542,1728072663423,-561.67,0.00038359,120]
[339857543,1728072663433,-683.76,0.00038359,120]
[339857544,1728072663442,-507.49,0.00038359,120]
[339857545,1728072663452,-628.61,0.00038359,120]
[339857546,1728072663462,-500.0,0.00038359,120]
[339857547,1728072663471,-604.91,0.00038359,120]
[339857548,1728072663481,-500.0,0.00038359,120]
[339857549,1728072663490,-500.0,0.00038359,120]
[339857550,1728072663501,-500.0,0.00038359,120]
[339857551,1728072663510,-511.93,0.00038359,120]
[339857552,1728072663520,-736.13,0.00038359,120]
[339857553,1728072663530,-500.0,0.00038359,120]
[339857554,1728072663539,-2117.96,0.00038359,120]
[339857555,1728072663549,-500.0,0.00038359,120]
[339857556,1728072663558,-1972.03,0.00038359,120]
[339857557,1728072663568,-150.0,0.00038368,7]
[339857558,1728072663577,-500.0,0.00038368,120]
[339857559,1728072663587,-500.0,0.00038368,120]
[339857560,1728072663597,-500.0,0.00038368,120]
[339857561,1728072663606,-500.0,0.00038368,120]
[339857562,1728072663616,-610.63298366,0.00038368,120]
[339857563,1728072663625,-500.0,0.00038368,120]
[339857564,1728072663635,-500.0,0.00038368,120]
[339857565,1728072663644,-500.0,0.00038368,120]
[339857566,1728072663654,-500.0,0.00038368,120]
[339857567,1728072663664,-500.0,0.00038368,120]
[339857568,1728072663674,-500.0,0.00038368,120]
[339857569,1728072663684,-1174.22,0.00038368,120]
[339857570,1728072663694,-615.37757941,0.00038368,120]
[339857571,1728072663704,-1319.52,0.00038368,120]
[339857572,1728072663714,-500.0,0.00038368,120]
[339857573,1728072663724,-367.523444,0.00038394,7]
[339857574,1728072663733,-150.0,0.000384,7]
[339857575,1728072663744,-150.0,0.000384,7]
[339857576,1728072663761,-150.0,0.00038407,7]
[339857577,1728072663771,-150.0,0.00038424,7]
[339857578,1728072663781,-367.523444,0.00038436,7]
[339857579,1728072663791,-150.0,0.00038439,7]
[339857580,1728072663801,-150.0,0.00038458,7]
[339857581,1728072663811,-367.523444,0.00038479,7]
[339857582,1728072663821,-150.0,0.00038481,7]
[339857583,1728072663831,-150.0,0.00038508,7]
[339857584,1728072663841,-367.523444,0.00038521,7]
[339857585,1728072663851,-150.0,0.0003853,7]
[339857586,1728072663860,-150.0,0.00038538,7]
[339857587,1728072663871,-151.100504,0.00038548,120]
[339857588,1728072663881,-150.0,0.0003855,7]
[339857589,1728072663891,-150.0,0.00038559,7]
[339857590,1728072663900,-367.523444,0.00038564,7]
[339857591,1728072663910,-150.0,0.00038595,7]
[339857592,1728072663921,-367.523444,0.00038606,7]
[339857593,1728072663932,-150.0,0.0003861,7]
[339857594,1728072663942,-150.0,0.00038622,7]
[339857595,1728072663952,-500.0,0.0003863,120]
[339857596,1728072663962,-500.0,0.0003863,120]
[339857597,1728072663972,-500.0,0.0003863,120]
[339857598,1728072663985,-500.0,0.0003863,120]
[339857599,1728072663994,-500.0,0.0003863,120]
[339857600,1728072664004,-500.0,0.0003863,7]
[339857601,1728072664014,-621.73,0.0003863,120]
[339857602,1728072664025,-500.0,0.0003863,120]
[339857603,1728072664035,-593.63,0.0003863,120]
[339857604,1728072664044,-500.0,0.0003863,120]
[339857605,1728072664056,-500.0,0.0003863,120]
[339857606,1728072664066,-500.0,0.0003863,120]
[339857607,1728072664075,-500.0,0.0003863,120]
[339857608,1728072664085,-736.09,0.0003863,120]
[339857609,1728072664095,-500.0,0.0003863,120]
[339857610,1728072664105,-521.49,0.0003863,120]
[339857611,1728072664114,-845.86,0.0003863,120]
[339857612,1728072664124,-867.68,0.0003863,120]
[339857613,1728072664133,-500.0,0.0003863,120]
[339857614,1728072664143,-500.0,0.0003863,120]
[339857615,1728072664153,-500.0,0.0003863,120]
[339857616,1728072664162,-500.0,0.0003863,120]
[339857617,1728072664172,-645.66,0.0003863,120]
[339857618,1728072664183,-625.52,0.0003863,120]
[339857619,1728072664195,-500.0,0.0003863,120]
[339857620,1728072664206,-692.74,0.0003863,120]
[339857621,1728072664216,-526.31,0.0003863,120]
[339857622,1728072664227,-500.0,0.0003863,120]
[339857623,1728072664236,-542.75,0.0003863,120]
[339857624,1728072664247,-500.0,0.0003863,120]
[339857625,1728072664261,-1018.13,0.0003863,120]
[339857626,1728072664271,-500.0,0.0003863,120]
[339857627,1728072664281,-733.84,0.0003863,120]
[339857628,1728072664291,-500.0,0.0003863,120]
[339857629,1728072664301,-500.0,0.0003863,120]
[339857630,1728072664311,-500.0,0.0003863,120]
[339857631,1728072664321,-500.0,0.0003863,120]
[339857632,1728072664331,-500.0,0.0003863,120]
[339857633,1728072664342,-500.0,0.0003863,120]
[339857634,1728072664352,-632.41,0.0003863,120]
[339857635,1728072664362,-515.7,0.0003863,120]
[339857636,1728072664374,-500.0,0.0003863,120]
[339857637,1728072664384,-615.85,0.0003863,120]
[339857638,1728072664395,-500.0,0.0003863,120]
[339857639,1728072664577,-814.37,0.0003863,120]
[339857640,1728072664588,-749.53,0.0003863,120]
[339857641,1728072664598,-1419.44,0.0003863,120]
[339857642,1728072664607,-1657.52,0.0003863,120]
[339857643,1728072664618,-562.7,0.0003863,120]
[339857644,1728072664627,-500.0,0.0003863,120]
[339857645,1728072664637,-500.0,0.0003863,120]
[339857646,1728072664646,-500.0,0.0003863,120]
[339857647,1728072664656,-2805.53,0.0003863,120]
[339857648,1728072664666,-508.83,0.0003863,120]
[339857649,1728072664676,-615.24,0.0003863,120]
[339857650,1728072664687,-500.0,0.0003863,120]
[339857651,1728072664697,-1212.97,0.0003863,120]
[339857652,1728072664707,-1217.4,0.0003863,120]
[339857653,1728072664716,-1231.73,0.0003863,120]
[339857654,1728072664726,-532.52,0.0003863,120]
[339857655,1728072664736,-855.6,0.0003863,120]
[339857656,1728072664745,-500.0,0.0003863,21]
[339857657,1728072664756,-1012.3,0.0003863,120]
[339857658,1728072664766,-500.0,0.0003863,120]
[339857659,1728072664775,-500.0,0.0003863,14]
[339857660,1728072664786,-500.0,0.0003863,120]
[339857661,1728072664795,-1440.62,0.0003863,120]
[339857662,1728072664805,-500.0,0.0003863,120]
[339857663,1728072664815,-566.19,0.0003863,120]
[339857664,1728072664824,-659.64,0.0003863,120]
[339857665,1728072664833,-207.17828791,0.0003863,120]
[339857666,1728072664843,-1844.03,0.0003863,120]
[339857667,1728072664853,-3111.13,0.0003863,120]
[339857668,1728072664863,-500.0,0.0003863,120]
[339857669,1728072664873,-686.44,0.0003863,120]
[339857670,1728072664882,-500.0,0.0003863,120]
[339857671,1728072664892,-500.0,0.0003863,120]
[339857672,1728072664901,-1560.97,0.0003863,120]
[339857673,1728072664910,-500.0,0.00038631,120]
[339857674,1728072664920,-1336.45,0.00038631,120]
[339857675,1728072664929,-500.0,0.00038631,120]
[339857676,1728072664938,-1336.48,0.00038631,120]
[339857677,1728072664947,-534.37765837,0.00038631,120]
[339857678,1728072664957,-538.94,0.00038631,120]
[339857679,1728072664967,-757.12,0.00038631,120]
[339857680,1728072664978,-616.09,0.00038631,120]
[339857681,1728072664990,-500.0,0.00038631,120]
[339857682,1728072665001,-500.0,0.00038631,120]
[339857683,1728072665010,-1132.41,0.00038631,120]
[339857684,1728072665021,-894.14,0.00038631,120]
[339857685,1728072665031,-592.05,0.00038631,120]
[339857686,1728072665040,-500.0,0.00038631,120]
[339857687,1728072665049,-585.13695868,0.00038631,120]
[339857688,1728072665060,-671.38,0.00038631,120]
[339857689,1728072665069,-1846.3,0.00038631,120]
[339857690,1728072665078,-500.0,0.00038631,120]
[339857691,1728072665087,-889.97,0.00038631,120]
[339857692,1728072665096,-500.0,0.00038631,120]
[339857693,1728072665105,-4058.58,0.00038631,120]
[339857694,1728072665114,-628.76,0.00038631,120]
[339857695,1728072665123,-3402.8,0.00038631,120]
[339857696,1728072665132,-1784.25,0.00038631,120]
[339857697,1728072665141,-755.9,0.00038631,120]
[339857698,1728072665150,-500.0,0.00038631,120]
[339857699,1728072665161,-970.91,0.00038631,120]
[339857700,1728072665171,-2014.6,0.00038631,120]
[339857701,1728072665180,-1456.9,0.00038631,120]
[339857702,1728072665190,-716.18,0.00038631,120]
[339857703,1728072665199,-520.29,0.00038631,120]
[339857704,1728072665208,-500.0,0.00038631,120]
[339857705,1728072665218,-828.01,0.00038631,120]
[339857706,1728072665227,-500.0,0.00038631,120]
[339857707,1728072665236,-1292.56,0.00038631,120]
[339857708,1728072665245,-1500.46,0.00038631,120]
[339857709,1728072665255,-635.49,0.00038631,120]
[339857710,1728072665264,-500.0,0.00038631,120]
[339857711,1728072665273,-500.0,0.00038631,120]
[339857712,1728072665282,-759.42,0.00038631,120]
[339857713,1728072665292,-500.0,0.00038631,120]
[339857714,1728072665301,-500.0,0.00038631,120]
[339857715,1728072665310,-2225.9,0.00038631,120]
[339857716,1728072665319,-1528.96,0.00038631,120]
[339857717,1728072665329,-500.0,0.00038631,120]
[339857718,1728072665338,-500.0,0.00038631,120]
[339857719,1728072665347,-523.46,0.00038631,120]
[339857720,1728072665357,-3051.38,0.00038631,120]
[339857721,1728072665366,-679.09,0.00038631,120]
[339857722,1728072665375,-898.65,0.00038631,120]
[339857723,1728072665385,-500.0,0.00038631,120]
[339857724,1728072665394,-897.3,0.00038631,120]
[339857725,1728072665403,-756.0,0.00038631,120]
[339857726,1728072665413,-1596.18,0.00038631,120]
[339857727,1728072665422,-500.0,0.00038631,120]
[339857728,1728072665431,-1964.44,0.00038631,120]
[339857729,1728072665440,-500.0,0.00038631,120]
[339857730,1728072665450,-548.42,0.00038631,120]
[339857731,1728072665459,-500.0,0.00038631,120]
[339857732,1728072665468,-500.0,0.00038631,120]
[339857733,1728072665478,-669.72,0.00038631,120]
[339857734,1728072665487,-346.47,0.00038631,120]
[339857735,1728072665496,-625.76765527,0.00038631,120]
[339857736,1728072665506,-500.0,0.00038631,120]
[339857737,1728072665516,-680.07,0.00038631,120]
[339857738,1728072665525,-500.0,0.00038631,120]
[339857739,1728072665535,-500.0,0.00038631,120]
[339857740,1728072665544,-500.0,0.00038631,120]
[339857741,1728072665553,-615.31,0.00038631,120]
[339857742,1728072665562,-608.59,0.00038631,120]
[339857743,1728072665572,-500.0,0.00038631,120]
[339857744,1728072665581,-500.0,0.00038631,120]
[339857745,1728072665591,-500.0,0.00038631,120]
[339857746,1728072665600,-500.0,0.00038631,120]
[339857747,1728072665609,-500.0,0.00038631,120]
[339857748,1728072665618,-500.0,0.00038631,120]
[339857749,1728072665627,-500.0,0.00038631,120]
[339857750,1728072665637,-604.81,0.00038631,120]
[339857751,1728072665646,-500.0,0.00038631,120]
[339857752,1728072665655,-500.0,0.00038631,120]
[339857753,1728072665665,-243.1,0.00038631,120]
[339857754,1728072665674,-500.0,0.00038631,120]
[339857755,1728072665683,-500.0,0.00038631,120]
[339857756,1728072665693,-536.9,0.00038631,120]
[339857757,1728072665703,-500.0,0.00038631,120]
[339857758,1728072665712,-500.0,0.00038631,120]
[339857759,1728072665721,-500.0,0.00038631,120]
[339857760,1728072665730,-500.0,0.00038631,120]
[339857761,1728072665740,-500.0,0.00038631,120]
[339857762,1728072665749,-626.73,0.00038631,120]
[339857763,1728072665758,-500.0,0.00038631,120]
[339857764,1728072665768,-500.0,0.00038631,120]
[339857765,1728072665777,-987.54,0.00038631,120]
[339857766,1728072665787,-500.0,0.00038631,120]
[339857767,1728072665796,-500.0,0.00038631,120]
[339857768,1728072665806,-500.0,0.00038631,120]
[339857769,1728072665815,-500.0,0.00038631,120]
[339857770,1728072665824,-500.0,0.00038631,120]
[339857771,1728072665833,-223.0,0.00038631,120]
[339857772,1728072665843,-500.0,0.00038631,120]
[339857773,1728072665852,-504.11,0.00038631,120]
[339857774,1728072665861,-500.0,0.00038631,120]
[339857775,1728072665870,-500.0,0.00038631,120]
[339857776,1728072665879,-500.0,0.00038631,120]
[339857777,1728072665889,-500.0,0.00038631,120]
[339857778,1728072665899,-1250.07,0.00038631,120]
[339857779,1728072665909,-289.47003936,0.00038631,120]
[339857780,1728072665918,-534.02,0.00038631,120]
[339857781,1728072665927,-500.0,0.00038631,120]
[339857782,1728072665936,-767.38,0.00038631,120]
[339857783,1728072665945,-676.97,0.00038631,120]
[339857784,1728072665956,-616.08,0.00038631,120]
[339857785,1728072665966,-1132.33,0.00038631,24]
[339857786,1728072665978,-500.0,0.00038631,120]
[339857787,1728072665990,-500.0,0.00038631,120]
[339857788,1728072666001,-500.0,0.00038631,120]
[339857789,1728072666010,-2379.6,0.00038631,120]
[339857790,1728072666019,-500.0,0.00038631,120]
[339857791,1728072666028,-396.64,0.00038631,120]
[339857792,1728072666039,-664.66,0.00038631,120]
[339857793,1728072666048,-500.0,0.00038631,120]
[339857794,1728072666057,-500.0,0.00038631,120]
[339857795,1728072666066,-1331.28,0.00038631,120]
[339857796,1728072666076,-500.0,0.00038631,120]
[339857797,1728072666085,-1012.06,0.00038631,120]
[339857798,1728072666094,-338.08965902,0.00038631,120]
[339857799,1728072666103,-818.68,0.00038631,120]
[339857800,1728072666114,-500.0,0.00038631,120]
[339857801,1728072666123,-312.84534762,0.00038631,120]
[339857802,1728072666132,-500.0,0.00038631,120]
[339857803,1728072666141,-500.0,0.00038631,120]
[339857804,1728072666150,-538.99,0.00038631,120]
[339857805,1728072666159,-676.85,0.00038631,120]
[339857806,1728072666168,-500.0,0.00038631,120]
[339857807,1728072666177,-3067.57,0.00038631,120]
[339857808,1728072666186,-500.0,0.00038631,120]
[339857809,1728072666195,-500.0,0.00038631,120]
[339857810,1728072666206,-500.0,0.00038632,120]
[339857811,1728072666216,-537.09,0.00038632,120]
[339857812,1728072666225,-820.07,0.00038632,120]
[339857813,1728072666235,-412.8,0.00038632,120]
[339857814,1728072666244,-633.53,0.00038632,120]
[339857815,1728072666255,-500.0,0.00038632,120]
[339857816,1728072666263,-810.03,0.00038632,120]
[339857817,1728072666272,-209.99,0.00038632,120]
[339857818,1728072666282,-500.0,0.00038632,120]
[339857819,1728072666291,-500.0,0.00038632,120]
[339857820,1728072666300,-500.0,0.00038632,120]
[339857821,1728072666309,-500.0,0.00038632,120]
[339857822,1728072666318,-500.0,0.00038632,120]
[339857823,1728072666327,-500.0,0.00038632,120]
[339857824,1728072666336,-500.0,0.00038632,120]
[339857825,1728072666344,-500.0,0.00038632,120]
[339857826,1728072666354,-558.18640009,0.00038632,120]
[339857827,1728072666363,-560.87,0.00038632,120]
[339857828,1728072666372,-535.45,0.00038632,120]
[339857829,1728072666381,-500.0,0.00038632,120]
[339857830,1728072666390,-403.30238215,0.00038632,120]
[339857831,1728072666399,-319.08503543,0.00038632,120]
[339857832,1728072666408,-500.0,0.00038632,120]
[339857833,1728072666417,-500.0,0.00038632,120]
[339857834,1728072666426,-500.0,0.00038632,120]
[339857835,1728072666435,-779.62,0.00038632,120]
[339857836,1728072666444,-500.0,0.00038632,120]
[339857837,1728072666453,-550.0,0.00038632,120]
[339857838,1728072666462,-1880.23,0.00038632,120]
[339857839,1728072666471,-500.0,0.00038632,120]
[339857840,1728072666480,-500.0,0.00038632,120]
[339857841,1728072666489,-500.0,0.00038632,120]
[339857842,1728072666500,-509.89,0.00038632,120]
[339857843,1728072666509,-638.53419746,0.00038632,120]
[339857844,1728072666518,-500.0,0.00038632,120]
[339857845,1728072666527,-452.41435099,0.00038633,120]
[339857846,1728072666536,-847.37,0.00038633,120]
[339857847,1728072666545,-500.0,0.00038633,120]
[339857848,1728072666554,-500.0,0.00038633,120]
[339857849,1728072666563,-500.0,0.00038633,120]
[339857850,1728072666572,-500.0,0.00038633,120]
[339857851,1728072666581,-500.0,0.00038633,120]
[339857852,1728072666591,-500.0,0.00038633,120]
[339857853,1728072666600,-500.0,0.00038633,120]
[339857854,1728072666609,-500.0,0.00038633,120]
[339857855,1728072666618,-411.63151962,0.00038633,120]
[339857856,1728072666627,-561.67,0.00038633,120]
[339857857,1728072666636,-683.76,0.00038633,120]
[339857858,1728072666645,-507.49,0.00038633,120]
[339857859,1728072666654,-628.61,0.00038633,120]
[339857860,1728072666663,-500.0,0.00038633,120]
[339857861,1728072666672,-604.91,0.00038633,120]
[339857862,1728072666681,-500.0,0.00038633,120]
[339857863,1728072666690,-500.0,0.00038633,120]
[339857864,1728072666699,-500.0,0.00038633,120]
[339857865,1728072666708,-511.93,0.00038633,120]
[339857866,1728072666718,-736.13,0.00038633,120]
[339857867,1728072666727,-290.63429381,0.00038633,120]
[339857868,1728072666736,-2117.96,0.00038633,120]
[339857869,1728072666745,-500.0,0.00038633,120]
[339857870,1728072666755,-1972.03,0.00038633,120]
[339857871,1728072666764,-500.0,0.00038642,120]
[339857872,1728072666773,-500.0,0.00038642,120]
[339857873,1728072666782,-500.0,0.00038642,120]
[339857874,1728072666791,-500.0,0.00038642,120]
[339857875,1728072666800,-500.0,0.00038642,120]
[339857876,1728072666861,-500.0,0.00038642,120]
[339857877,1728072666871,-500.0,0.00038642,120]
[339857878,1728072666880,-408.26389324,0.00038642,120]
[339857879,1728072666889,-234.21013136,0.00038642,120]
[339857880,1728072666898,-500.0,0.00038642,120]
[339857881,1728072666907,-1174.22,0.00038642,120]
[339857882,1728072666917,-1319.52,0.00038642,120]
[339857883,1728072666926,-500.0,0.00038642,120]
[339857884,1728072666935,-1000.0,0.00038642,2]
[339857885,1728072666943,-367.523444,0.00038648,7]
[339857886,1728072666952,-150.0,0.00038651,7]
[339857887,1728072666961,-150.0,0.0003866,7]
[339857888,1728072666970,-367.523444,0.00038691,7]
[339857889,1728072666982,-150.0,0.000387,7]
[339857890,1728072666991,-150.0,0.00038708,7]
[339857891,1728072667001,-150.0,0.00038711,7]
[339857892,1728072667010,-150.0,0.00038713,7]
[339857893,1728072667020,-367.523444,0.00038733,7]
[339857894,1728072667029,-151.100504,0.00038748,120]
[339857895,1728072667038,-150.0,0.00038761,7]
[339857896,1728072667047,-150.0,0.00038765,7]
[339857897,1728072667057,-367.523444,0.00038776,7]
[339857898,1728072667067,-150.0,0.00038804,7]
[339857899,1728072667076,-150.0,0.00038812,7]
[339857900,1728072667085,-367.523444,0.00038818,7]
[339857901,1728072667095,-150.0,0.00038822,7]
[339857902,1728072667104,-150.0,0.0003885,7]
[339857903,1728072667113,-150.0,0.0003885,7]
[339857904,1728072667122,-367.523444,0.00038861,7]
[339857905,1728072667132,-150.0,0.00038863,7]
[339857906,1728072667142,-150.0,0.00038878,7]
[339857907,1728072667151,-150.0,0.00038896,7]
[339857908,1728072667160,-444.3838587,0.00038897,2]
[339857909,1728072667169,-5351.6945859,0.00038897,2]
[339857910,1728072667178,-1078.4342962,0.00038897,2]
[339857911,1728072667187,-1400.0,0.000389,14]
[339857912,1728072667196,-367.523444,0.00038903,7]
[339857913,1728072667205,-500.0,0.00038904,120]
[339857914,1728072667214,-500.0,0.00038904,120]
[339857915,1728072667223,-500.0,0.00038904,120]
[339857916,1728072667232,-500.0,0.00038904,120]
[339857917,1728072667240,-500.0,0.00038904,120]